fUST/lending_fUST_20240921
["ID","MTS","AMOUNT","RATE_DAILY","PERIOD"]
[338680134,1726867856515,-500.0,0.00016138,2]
[338680135,1726867856524,-500.0,0.00016139,2]
[338680136,1726867856534,-520.44,0.00016139,2]
[338680137,1726867856546,-500.0,0.00016139,2]
[338680138,1726867856555,-151.0,0.00016139,2]
[338680139,1726867856564,-624.75,0.00016139,2]
[338680140,1726867856574,-500.0,0.00016139,2]
[338680141,1726867856583,-599.75,0.00016139,2]
[338680142,1726867856593,-500.0,0.00016139,2]
[338680143,1726867856604,-500.0,0.00016139,2]
[338680144,1726867856615,-500.0,0.00016139,2]
[338680145,1726867856626,-500.0,0.00016139,2]
[338680146,1726867856638,-500.0,0.00016139,2]
[338680147,1726867856649,-500.0,0.00016139,2]
[338680148,1726867856658,-500.0,0.00016139,2]
[338680149,1726867856668,-500.0,0.00016139,2]
[338680150,1726867856677,-500.0,0.00016139,2]
[338680151,1726867856687,-521.5,0.00016139,2]
[338680152,1726867856696,-500.0,0.00016139,2]
[338680153,1726867856706,-558.65,0.00016139,2]
[338680154,1726867856716,-1327.21,0.00016139,2]
[338680155,1726867856727,-500.0,0.0001614,2]
[338680156,1726867856738,-364.13,0.0001614,2]
[338680157,1726867856748,-2800.0,0.0001614,2]
[338680158,1726867856758,-500.0,0.00016159,2]
[338680159,1726867856767,-500.0,0.00016159,2]
[338680160,1726867856777,-500.0,0.00016159,2]
[338680161,1726867856786,-500.0,0.00016159,2]
[338680162,1726867856796,-624.75,0.00016161,2]
[338680163,1726867856805,-599.75,0.00016161,2]
[338680164,1726867856815,-151.0,0.00016162,2]
[338680165,1726867856825,-150.0,0.00016162,2]
[338680166,1726867856835,-150.0,0.00016189,2]
[338680167,1726867856844,-1000.0,0.000162,2]
[338680168,1726867856854,-200.71850299,0.00016217,2]
[338680169,1726867856863,-150.0,0.000163,2]
[338680170,1726867856873,-1324.61,0.00016393,2]
[338680171,1726867856882,-797.16,0.00016393,2]
[338680172,1726867856891,-167.83288246,0.00016393,2]
[338680173,1726867856900,-545.43711959,0.00016393,2]
[338680174,1726867856909,-154.346596,0.000164,2]
[338680175,1726867856919,-500.0,0.00016403,2]
[338680176,1726867856930,-500.0,0.00016403,2]
[338680177,1726867856941,-1000.0,0.00016408,2]
[338680178,1726867856951,-1070.1272687,0.00016408,2]
[338680179,1726867856963,-1043.17111625,0.00016408,2]
[338680180,1726867856972,-19877.94,0.00016411,2]
[338680181,1726867856981,-1813.78,0.00016411,2]
[338680182,1726867856990,-608.96,0.00016411,2]
[338680183,1726867857000,-1521.311035,0.00016411,2]
[338680184,1726867857009,-1521.311035,0.00016411,2]
[338680185,1726867857018,-348.570228,0.00016411,2]
[338680186,1726867857028,-348.570228,0.00016411,2]
[338680187,1726867857042,-151.0,0.00016411,2]
[338680188,1726867857052,-261.172314,0.00016411,2]
[338680189,1726867857061,-362.425478,0.00016411,2]
[338680190,1726867857070,-362.425478,0.00016411,2]
[338680191,1726867857079,-500.0,0.00016412,2]
[338680192,1726867857089,-500.0,0.00016412,2]
[338680193,1726867857098,-500.0,0.00016412,2]
[338680194,1726867857107,-151.0,0.00016412,2]
[338680195,1726867857117,-151.0,0.00016412,2]
[338680196,1726867857127,-151.0,0.00016412,2]
[338680197,1726867857139,-500.0,0.00016412,2]
[338680198,1726867857150,-500.0,0.00016412,2]
[338680199,1726867857159,-500.0,0.00016412,2]
[338680200,1726867857168,-500.0,0.00016412,2]
[338680201,1726867857177,-151.0,0.00016412,2]
[338680202,1726867857189,-1011.09,0.00016412,2]
[338680203,1726867857200,-500.0,0.00016412,2]
[338680204,1726867857210,-500.0,0.00016412,2]
[338680205,1726867857220,-500.0,0.00016412,2]
[338680206,1726867857231,-500.0,0.00016412,2]
[338680207,1726867857242,-500.0,0.00016412,2]
[338680208,1726867857254,-500.0,0.00016412,2]
[338680209,1726867857263,-500.0,0.00016412,2]
[338680210,1726867857272,-500.0,0.00016412,2]
[338680211,1726867857281,-500.0,0.00016412,2]
[338680212,1726867857290,-500.0,0.00016412,2]
[338680213,1726867857300,-500.0,0.00016413,2]
[338680214,1726867857310,-500.0,0.00016413,2]
[338680215,1726867857319,-624.75,0.00016413,2]
[338680216,1726867857328,-500.0,0.00016413,2]
[338680217,1726867857338,-599.75,0.00016413,2]
[338680218,1726867857347,-500.0,0.00016413,2]
[338680219,1726867857357,-500.0,0.00016413,2]
[338680220,1726867857368,-500.0,0.00016413,2]
[338680221,1726867857379,-500.0,0.00016413,2]
[338680222,1726867857389,-500.0,0.00016413,2]
[338680223,1726867857400,-500.0,0.00016413,2]
[338680224,1726867857413,-500.0,0.00016413,2]
[338680225,1726867857424,-500.0,0.00016413,2]
[338680226,1726867857435,-521.5,0.00016413,2]
[338680227,1726867857446,-558.65,0.00016413,2]
[338680228,1726867857455,-1327.21,0.00016413,2]
[338680229,1726867857467,-500.0,0.00016414,2]
[338680230,1726867857477,-624.75,0.00016421,2]
[338680231,1726867857488,-624.75,0.00016421,2]
[338680232,1726867857499,-599.75,0.00016421,2]
[338680233,1726867857509,-599.75,0.00016421,2]
[338680234,1726867857520,-151.0,0.00016432,2]
[338680235,1726867857530,-151.0,0.00016432,2]
[338680236,1726867857540,-151.0,0.00016433,2]
[338680237,1726867857549,-500.0,0.00016433,2]
[338680238,1726867857559,-500.0,0.00016433,2]
[338680239,1726867857570,-500.0,0.00016433,2]
[338680240,1726867857580,-449.73,0.00016433,2]
[338680241,1726867857590,-624.75,0.00016435,2]
[338680242,1726867857601,-599.75,0.00016435,2]
[338680243,1726867857612,-200.0,0.00016438,2]
[338680244,1726867857622,-200.0,0.00016438,2]
[338680245,1726867857633,-200.0,0.00016438,2]
[338680246,1726867857644,-248.63990904,0.00016438,2]
[338680247,1726867857654,-957.5282565,0.00016438,2]
[338680248,1726867857665,-151.0,0.00016438,2]
[338680249,1726867857674,-151.0,0.00016438,2]
[338680250,1726867857684,-154.795383,0.00016438,2]
[338680251,1726867857693,-1000.0,0.00016463,2]
[338680252,1726867857703,-318.18412294,0.00016463,2]
[338680253,1726867857713,-500.0,0.00016463,2]
[338680254,1726867857725,-500.0,0.00016463,2]
[338680255,1726867857735,-700.0,0.0001648,2]
[338680256,1726867857745,-151.0,0.00016531,2]
[338680257,1726867857755,-151.0,0.00016531,2]
[338680258,1726867857765,-151.0,0.00016531,2]
[338680259,1726867857774,-1324.61,0.00016667,2]
[338680260,1726867857784,-797.16,0.00016667,2]
[338680261,1726867857794,-500.0,0.00016677,2]
[338680262,1726867857813,-500.0,0.00016677,2]
[338680263,1726867857823,-19877.94,0.00016685,2]
[338680264,1726867857832,-1813.78,0.00016685,2]
[338680265,1726867857843,-608.96,0.00016685,2]
[338680266,1726867857852,-500.0,0.00016686,2]
[338680267,1726867857861,-500.0,0.00016686,2]
[338680268,1726867857870,-500.0,0.00016686,2]
[338680269,1726867857880,-500.0,0.00016686,2]
[338680270,1726867857889,-587.3,0.00016686,2]
[338680271,1726867857899,-500.0,0.00016686,2]
[338680272,1726867857909,-500.0,0.00016686,2]
[338680273,1726867857919,-1011.09,0.00016686,2]
[338680274,1726867857929,-500.0,0.00016686,2]
[338680275,1726867857939,-500.0,0.00016686,2]
[338680276,1726867857951,-500.0,0.00016686,2]
[338680277,1726867857963,-500.0,0.00016686,2]
[338680278,1726867857974,-500.0,0.00016686,2]
[338680279,1726867857983,-500.0,0.00016686,2]
[338680280,1726867857995,-230.8691284,0.00016686,2]
[338680281,1726867858005,-500.0,0.00016687,2]
[338680282,1726867858015,-273.04872784,0.00016687,2]
[338680283,1726867858026,-624.75,0.00016687,2]
[338680284,1726867858037,-500.0,0.00016687,2]
[338680285,1726867858050,-599.75,0.00016687,2]
[338680286,1726867858060,-189.18,0.00016687,2]
[338680287,1726867858070,-500.0,0.00016687,2]
[338680288,1726867858079,-500.0,0.00016687,2]
[338680289,1726867858089,-500.0,0.00016687,2]
[338680290,1726867858100,-500.0,0.00016687,2]
[338680291,1726867858110,-500.0,0.00016687,2]
[338680292,1726867858120,-521.5,0.00016687,2]
[338680293,1726867858131,-558.65,0.00016687,2]
[338680294,1726867858141,-1327.21,0.00016687,2]
[338680295,1726867858151,-500.0,0.00016688,2]
[338680296,1726867858161,-624.75,0.000167,2]
[338680297,1726867858170,-624.75,0.000167,2]
[338680298,1726867858180,-624.75,0.000167,2]
[338680299,1726867858191,-624.75,0.000167,2]
[338680300,1726867858202,-624.8820289,0.000167,2]
[338680301,1726867858215,-599.75,0.000167,2]
[338680302,1726867858225,-599.75,0.000167,2]
[338680303,1726867858236,-599.75,0.000167,2]
[338680304,1726867858248,-599.75,0.000167,2]
[338680305,1726867858259,-599.80576354,0.000167,2]
[338680306,1726867858269,-160.98772376,0.000167,2]
[338680307,1726867858278,-595.516003,0.000167,2]
[338680308,1726867858290,-595.516003,0.000167,2]
[338680309,1726867858301,-310.773485,0.000167,2]
[338680310,1726867858310,-310.773485,0.000167,2]
[338680311,1726867858319,-500.0,0.00016707,2]
[338680312,1726867858329,-496.92,0.00016707,2]
[338680313,1726867858341,-500.0,0.00016707,2]
[338680314,1726867858352,-150.112233,0.000168,2]
[338680315,1726867858362,-300.0,0.000168,6]
[338680316,1726867858372,-1324.61,0.00016941,2]
[338680317,1726867858381,-797.16,0.00016941,2]
[338680318,1726867858391,-500.0,0.00016951,2]
[338680319,1726867858401,-500.0,0.00016951,2]
[338680320,1726867858412,-19877.94,0.00016959,2]
[338680321,1726867858421,-1813.78,0.00016959,2]
[338680322,1726867858431,-608.96,0.00016959,2]
[338680323,1726867858440,-500.0,0.0001696,2]
[338680324,1726867858450,-500.0,0.0001696,2]
[338680325,1726867858460,-500.0,0.0001696,2]
[338680326,1726867858470,-500.0,0.0001696,2]
[338680327,1726867858479,-500.0,0.0001696,2]
[338680328,1726867858489,-500.0,0.0001696,2]
[338680329,1726867858498,-1011.09,0.0001696,2]
[338680330,1726867858509,-315.05030872,0.0001696,2]
[338680331,1726867858520,-500.0,0.0001696,2]
[338680332,1726867858531,-500.0,0.0001696,2]
[338680333,1726867858541,-500.0,0.0001696,2]
[338680334,1726867858552,-500.0,0.0001696,2]
[338680335,1726867858562,-637.34904568,0.0001696,2]
[338680336,1726867858571,-500.0,0.00016961,2]
[338680337,1726867858581,-500.0,0.00016961,2]
[338680338,1726867858592,-249.44,0.00016961,2]
[338680339,1726867858601,-500.0,0.00016961,2]
[338680340,1726867858612,-500.0,0.00016961,2]
[338680341,1726867858621,-500.0,0.00016961,2]
[338680342,1726867858631,-500.0,0.00016961,2]
[338680343,1726867858643,-521.5,0.00016961,2]
[338680344,1726867858654,-558.65,0.00016961,2]
[338680345,1726867858664,-1327.21,0.00016961,2]
[338680346,1726867858674,-500.0,0.00016962,2]
[338680347,1726867858683,-500.0,0.00016981,2]
[338680348,1726867858693,-596.45,0.00016981,2]
[338680349,1726867858702,-884.53,0.000171,2]
[338680350,1726867858712,-150.112233,0.000172,2]
[338680351,1726867858722,-1324.61,0.00017215,2]
[338680352,1726867858731,-797.16,0.00017215,2]
[338680353,1726867858741,-500.0,0.00017225,2]
[338680354,1726867858752,-500.0,0.00017225,2]
[338680355,1726867858762,-19877.94,0.00017233,2]
[338680356,1726867858772,-1813.78,0.00017233,2]
[338680357,1726867858782,-608.96,0.00017233,2]
[338680358,1726867858792,-500.0,0.00017234,2]
[338680359,1726867858802,-354.46,0.00017234,2]
[338680360,1726867858813,-499.9,0.00017234,2]
[338680361,1726867858824,-500.0,0.00017234,2]
[338680362,1726867858834,-394.78,0.00017234,2]
[338680363,1726867858844,-500.0,0.00017234,2]
[338680364,1726867858854,-1011.09,0.00017234,2]
[338680365,1726867858864,-500.0,0.00017234,2]
[338680366,1726867858874,-500.0,0.00017234,2]
[338680367,1726867858884,-500.0,0.00017234,2]
[338680368,1726867858894,-591.54880925,0.00017234,2]
[338680369,1726867858903,-230.58,0.00017235,2]
[338680370,1726867858913,-333.98,0.00017235,2]
[338680371,1726867858923,-500.0,0.00017235,2]
[338680372,1726867858933,-500.0,0.00017235,2]
[338680373,1726867858942,-500.0,0.00017235,2]
[338680374,1726867858952,-521.5,0.00017235,2]
[338680375,1726867858964,-558.65,0.00017235,2]
[338680376,1726867858974,-1327.21,0.00017235,2]
[338680377,1726867858983,-500.0,0.00017236,2]
[338680378,1726867858993,-315.99,0.00017255,2]
[338680379,1726867859004,-151.0,0.00017311,2]
[338680380,1726867859013,-151.0,0.00017311,2]
[338680381,1726867859023,-587.0,0.00017356,2]
[338680382,1726867859032,-150.0,0.00017481,2]
[338680383,1726867859042,-524.0,0.00017481,2]
[338680384,1726867859052,-1216.0,0.00017481,2]
[338680385,1726867859061,-1324.61,0.00017489,2]
[338680386,1726867859071,-797.16,0.00017489,2]
[338680387,1726867859080,-214.042,0.00017492,2]
[338680388,1726867859090,-150.659,0.00017492,2]
[338680389,1726867859099,-150.0,0.00017492,2]
[338680390,1726867859108,-150.301,0.00017492,2]
[338680391,1726867859117,-150.0,0.00017492,2]
[338680392,1726867859127,-500.0,0.00017499,2]
[338680393,1726867859136,-500.0,0.00017499,2]
[338680394,1726867859145,-19877.94,0.00017507,2]
[338680395,1726867859279,-1813.78,0.00017507,2]
[338680396,1726867859289,-608.96,0.00017507,2]
[338680397,1726867859299,-500.0,0.00017508,2]
[338680398,1726867859309,-500.0,0.00017508,2]
[338680399,1726867859318,-363.7,0.00017508,2]
[338680400,1726867859328,-152.395519,0.00017508,2]
[338680401,1726867859338,-152.395519,0.00017508,2]
[338680402,1726867859348,-151.0,0.00017508,2]
[338680403,1726867859357,-151.0,0.00017508,2]
[338680404,1726867859366,-151.0,0.00017508,2]
[338680405,1726867859376,-1011.09,0.00017508,2]
[338680406,1726867859385,-500.0,0.00017508,2]
[338680407,1726867859395,-500.0,0.00017508,2]
[338680408,1726867859404,-500.0,0.00017508,2]
[338680409,1726867859414,-438.767728,0.00017508,2]
[338680410,1726867859423,-438.767728,0.00017508,2]
[338680411,1726867859433,-265.932938,0.00017509,2]
[338680412,1726867859443,-265.932938,0.00017509,2]
[338680413,1726867859452,-499.4,0.00017509,2]
[338680414,1726867859461,-500.0,0.00017509,2]
[338680415,1726867859470,-500.0,0.00017509,2]
[338680416,1726867859479,-521.5,0.00017509,2]
[338680417,1726867859488,-558.65,0.00017509,2]
[338680418,1726867859497,-500.0,0.0001751,2]
[338680419,1726867859506,-1002.992344,0.0001751,2]
[338680420,1726867859515,-1002.992344,0.0001751,2]
[338680421,1726867859524,-151.0,0.0001751,2]
[338680422,1726867859534,-151.0,0.0001751,2]
[338680423,1726867859543,-436.920315,0.0001751,2]
[338680424,1726867859552,-151.0,0.0001751,2]
[338680425,1726867859561,-436.920315,0.0001751,2]
[338680426,1726867859570,-394.026933,0.0001751,2]
[338680427,1726867859580,-151.0,0.0001751,2]
[338680428,1726867859590,-394.026933,0.0001751,2]
[338680429,1726867859600,-587.0,0.00017514,2]
[338680430,1726867859609,-153.33258,0.00017531,2]
[338680431,1726867859619,-153.33258,0.00017531,2]
[338680432,1726867859628,-185.327982,0.00017541,2]
[338680433,1726867859637,-185.327982,0.00017541,2]
[338680434,1726867859646,-700.0,0.00017576,2]
[338680435,1726867859655,-151.0,0.00017576,2]
[338680436,1726867859665,-517.969356,0.00017576,2]
[338680437,1726867859674,-517.969356,0.00017576,2]
[338680438,1726867859683,-151.0,0.00017576,2]
[338680439,1726867859692,-151.0,0.00017576,2]
[338680440,1726867859701,-150.112233,0.000176,2]
[338680441,1726867859711,-1324.61,0.00017763,2]
[338680442,1726867859720,-797.16,0.00017763,2]
[338680443,1726867859730,-500.0,0.00017773,2]
[338680444,1726867859739,-500.0,0.00017773,2]
[338680445,1726867859749,-19877.94,0.00017781,2]
[338680446,1726867859758,-1813.78,0.00017781,2]
[338680447,1726867859768,-608.96,0.00017781,2]
[338680448,1726867859778,-500.0,0.00017782,2]
[338680449,1726867859787,-865.463611,0.00017782,2]
[338680450,1726867859796,-865.463611,0.00017782,2]
[338680451,1726867859805,-500.0,0.00017782,2]
[338680452,1726867859814,-1011.09,0.00017782,2]
[338680453,1726867859823,-500.0,0.00017782,2]
[338680454,1726867859833,-500.0,0.00017782,2]
[338680455,1726867859842,-500.0,0.00017783,2]
[338680456,1726867859851,-500.0,0.00017783,2]
[338680457,1726867859860,-521.5,0.00017783,2]
[338680458,1726867859870,-558.65,0.00017783,2]
[338680459,1726867859878,-500.0,0.00017784,2]
[338680460,1726867859888,-151.0,0.00017802,2]
[338680461,1726867859897,-1500.0,0.00017946,2]
[338680462,1726867859906,-1000.0,0.00017946,2]
[338680463,1726867859915,-1500.0,0.00017946,2]
[338680464,1726867859924,-1500.0,0.00017946,2]
[338680465,1726867859934,-150.112233,0.00018,2]
[338680466,1726867859943,-1696.204153,0.00018,2]
[338680467,1726867859952,-1324.61,0.00018036,2]
[338680468,1726867859965,-797.16,0.00018036,2]
[338680469,1726867859974,-500.0,0.00018047,2]
[338680470,1726867859983,-500.0,0.00018047,2]
[338680471,1726867859993,-3200.0,0.00018055,2]
[338680472,1726867860002,-150.0,0.00018055,2]
[338680473,1726867860012,-300.0,0.00018055,2]
[338680474,1726867860021,-19877.94,0.00018055,2]
[338680475,1726867860031,-1813.78,0.00018055,2]
[338680476,1726867860041,-608.96,0.00018055,2]
[338680477,1726867860052,-500.0,0.00018056,2]
[338680478,1726867860061,-500.0,0.00018056,2]
[338680479,1726867860073,-1011.09,0.00018056,2]
[338680480,1726867860084,-500.0,0.00018056,2]
[338680481,1726867860095,-500.0,0.00018056,2]
[338680482,1726867860105,-364.28,0.00018057,2]
[338680483,1726867860115,-500.0,0.00018057,2]
[338680484,1726867860127,-521.5,0.00018057,2]
[338680485,1726867860136,-558.65,0.00018057,2]
[338680486,1726867860148,-500.0,0.00018058,2]
[338680487,1726867860158,-1324.61,0.0001831,2]
[338680488,1726867860169,-797.16,0.0001831,2]
[338680489,1726867860181,-500.0,0.00018321,2]
[338680490,1726867860191,-500.0,0.00018321,2]
[338680491,1726867860200,-19877.94,0.00018329,2]
[338680492,1726867860209,-1813.78,0.00018329,2]
[338680493,1726867860220,-608.96,0.00018329,2]
[338680494,1726867860232,-1521.311035,0.00018329,2]
[338680495,1726867860244,-1521.311035,0.00018329,2]
[338680496,1726867860255,-348.570228,0.00018329,2]
[338680497,1726867860265,-348.570228,0.00018329,2]
[338680498,1726867860276,-151.0,0.00018329,2]
[338680499,1726867860288,-362.425478,0.00018329,2]
[338680500,1726867860298,-362.425478,0.00018329,2]
[338680501,1726867860310,-500.0,0.0001833,2]
[338680502,1726867860321,-500.0,0.0001833,2]
[338680503,1726867860333,-1011.09,0.0001833,2]
[338680504,1726867860344,-500.0,0.0001833,2]
[338680505,1726867860354,-451.4,0.0001833,2]
[338680506,1726867860364,-500.0,0.00018331,2]
[338680507,1726867860373,-521.5,0.00018331,2]
[338680508,1726867860383,-558.65,0.00018331,2]
[338680509,1726867860391,-500.0,0.00018332,2]
[338680510,1726867860401,-151.0,0.00018351,2]
[338680511,1726867860410,-151.0,0.00018351,2]
[338680512,1726867860419,-500.0,0.00018371,2]
[338680513,1726867860429,-500.0,0.00018399,2]
[338680514,1726867860438,-500.0,0.00018399,2]
[338680515,1726867860447,-150.112233,0.000184,2]
[338680516,1726867860456,-500.0,0.00018411,2]
[338680517,1726867860465,-151.0,0.00018426,2]
[338680518,1726867860475,-1500.0,0.00018466,2]
[338680519,1726867860483,-957.5282565,0.0001848,2]
[338680520,1726867860493,-1000.0,0.000185,2]
[338680521,1726867860502,-653.16498462,0.00018513,2]
[338680522,1726867860511,-1324.61,0.00018584,2]
[338680523,1726867860520,-797.16,0.00018584,2]
[338680524,1726867860529,-500.0,0.00018595,2]
[338680525,1726867860539,-500.0,0.00018595,2]
[338680526,1726867860548,-19877.94,0.00018603,2]
[338680527,1726867860557,-1813.78,0.00018603,2]
[338680528,1726867860567,-608.96,0.00018603,2]
[338680529,1726867860576,-500.0,0.00018604,2]
[338680530,1726867860585,-418.66,0.00018604,2]
[338680531,1726867860594,-1011.09,0.00018604,2]
[338680532,1726867860604,-602.88,0.00018604,2]
[338680533,1726867860615,-500.0,0.00018605,2]
[338680534,1726867860624,-521.5,0.00018605,2]
[338680535,1726867860633,-558.65,0.00018605,2]
[338680536,1726867860643,-500.0,0.00018606,2]
[338680537,1726867860652,-151.0,0.00018647,2]
[338680538,1726867860660,-151.0,0.00018647,2]
[338680539,1726867860670,-151.0,0.00018647,2]
[338680540,1726867860680,-700.0,0.00018672,2]
[338680541,1726867860689,-635.6297294,0.00018715,2]
[338680542,1726867860698,-500.0,0.00018729,2]
[338680543,1726867860707,-500.0,0.00018729,2]
[338680544,1726867860716,-1531.98886274,0.00018799,2]
[338680545,1726867860725,-150.112233,0.000188,2]
[338680546,1726867860734,-1324.61,0.00018858,2]
[338680547,1726867860743,-797.16,0.00018858,2]
[338680548,1726867860753,-500.0,0.00018869,2]
[338680549,1726867860762,-336.57,0.00018869,2]
[338680550,1726867860772,-19877.94,0.00018877,2]
[338680551,1726867860781,-1813.78,0.00018877,2]
[338680552,1726867860790,-608.96,0.00018877,2]
[338680553,1726867860801,-500.0,0.00018878,2]
[338680554,1726867860810,-151.0,0.00018878,2]
[338680555,1726867860819,-151.0,0.00018878,2]
[338680556,1726867860828,-151.0,0.00018878,2]
[338680557,1726867860837,-151.0,0.00018878,2]
[338680558,1726867860847,-1011.09,0.00018878,2]
[338680559,1726867860856,-500.0,0.00018879,2]
[338680560,1726867860865,-521.5,0.00018879,2]
[338680561,1726867860874,-558.65,0.00018879,2]
[338680562,1726867860883,-500.0,0.0001888,2]
[338680563,1726867860894,-550.0,0.000189,2]
[338680564,1726867860903,-185.327982,0.00018921,2]
[338680565,1726867860912,-185.327982,0.00018921,2]
[338680566,1726867860923,-151.99846844,0.00019,2]
[338680567,1726867860934,-1000.0,0.00019,2]
[338680568,1726867860947,-823.0,0.00019005,2]
[338680569,1726867860957,-530.489943,0.00019024,2]
[338680570,1726867860969,-470.780401,0.00019024,2]
[338680571,1726867860979,-593.678913,0.00019024,2]
[338680572,1726867860987,-470.7804,0.00019024,2]
[338680573,1726867860999,-530.489943,0.00019024,2]
[338680574,1726867861008,-470.7804,0.00019024,2]
[338680575,1726867861017,-550.0,0.000191,2]
[338680576,1726867861028,-1324.61,0.00019132,2]
[338680577,1726867861038,-797.16,0.00019132,2]
[338680578,1726867861048,-447.87,0.00019143,2]
[338680579,1726867861058,-7299.28411204,0.0001915,2]
[338680580,1726867861067,-19877.94,0.00019151,2]
[338680581,1726867861077,-1813.78,0.00019151,2]
[338680582,1726867861086,-595.516003,0.00019151,2]
[338680583,1726867861096,-595.516003,0.00019151,2]
[338680584,1726867861105,-310.773485,0.00019151,2]
[338680585,1726867861115,-310.773485,0.00019151,2]
[338680586,1726867861125,-608.96,0.00019151,2]
[338680587,1726867861136,-500.0,0.00019152,2]
[338680588,1726867861146,-1011.09,0.00019152,2]
[338680589,1726867861156,-151.0,0.00019153,2]
[338680590,1726867861166,-500.0,0.00019153,2]
[338680591,1726867861175,-521.5,0.00019153,2]
[338680592,1726867861185,-558.65,0.00019153,2]
[338680593,1726867861195,-432.0629048,0.00019154,2]
[338680594,1726867861204,-151.0,0.00019178,2]
[338680595,1726867861213,-163.84505,0.00019178,2]
[338680596,1726867861223,-163.84505,0.00019178,2]
[338680597,1726867861232,-151.0,0.00019178,2]
[338680598,1726867861241,-1175.600903,0.00019178,2]
[338680599,1726867861251,-696.80921,0.00019178,2]
[338680600,1726867861260,-696.80921,0.00019178,2]
[338680601,1726867861269,-151.0,0.00019178,2]
[338680602,1726867861279,-151.0,0.00019178,2]
[338680603,1726867861289,-151.0,0.00019178,2]
[338680604,1726867861299,-2000.0,0.00019178,2]
[338680605,1726867861309,-2000.0,0.00019178,2]
[338680606,1726867861318,-2000.0,0.00019178,2]
[338680607,1726867861327,-2000.0,0.00019178,2]
[338680608,1726867861336,-2000.0,0.00019178,2]
[338680609,1726867861346,-2000.0,0.00019178,2]
[338680610,1726867861355,-2000.0,0.00019178,2]
[338680611,1726867861364,-2000.0,0.00019178,2]
[338680612,1726867861373,-2000.0,0.00019178,2]
[338680613,1726867861383,-2000.0,0.00019178,2]
[338680614,1726867861392,-2000.0,0.00019178,2]
[338680615,1726867861401,-2000.0,0.00019178,2]
[338680616,1726867861410,-2000.0,0.00019178,2]
[338680617,1726867861420,-2000.0,0.00019178,2]
[338680618,1726867861429,-2000.0,0.00019178,2]
[338680619,1726867861438,-2000.0,0.00019178,2]
[338680620,1726867861447,-579.59048,0.00019178,2]
[338680621,1726867861456,-151.0,0.00019178,2]
[338680622,1726867861466,-517.969356,0.00019178,2]
[338680623,1726867861475,-517.969356,0.00019178,2]
[338680624,1726867861487,-265.932938,0.00019178,2]
[338680625,1726867861497,-265.932938,0.00019178,2]
[338680626,1726867861509,-865.463611,0.00019178,2]
[338680627,1726867861519,-865.463611,0.00019178,2]
[338680628,1726867861530,-1002.992344,0.00019178,2]
[338680629,1726867861540,-1002.992344,0.00019178,2]
[338680630,1726867861552,-152.395519,0.00019178,2]
[338680631,1726867861562,-152.395519,0.00019178,2]
[338680632,1726867861571,-151.0,0.00019178,2]
[338680633,1726867861581,-436.920315,0.00019178,2]